Cogmind - Beta 10.2 *** ADVENTURER MODE // 2022.02.19 @ 01:18:35 Player: woegarden Result: Destroyed by Y-45 Defender with Beam Rifle Performance ------------- Evolutions (2) 1000 Regions Visited (5) 1000 Robots Destroyed (18) 90 Value Destroyed (360) 360 Prototype IDs (3) 60 Alien Tech Used (0) 0 Bonus (0) 0 TOTAL SCORE: 2510 Bonus ------- None Cogmind --------- Core Integrity 0/550 Matter 149/300 Energy 160/160 System Corruption 2% Temperature Cool (9) Movement Core (100) Ox1 Location -8/Materials Parts ------- > --- POWER (2) -------- Light Nuclear Core > --- PROPULSION (2) --- (None) > --- UTILITY (5) ------ Advanced Signal Interpreter > --- WEAPON (2) ------- (None) > --- INVENTORY (4) ---- Medium Storage Unit Advanced Visual Processing Unit Hacking Suite Improved Datajack Peak State ------------ > --- POWER ------------ Ion Engine > --- PROPULSION ------- VTOL Module VTOL Module > --- UTILITY ---------- Medium Storage Unit Weight Redist. System Advanced Signal Interpreter Hacking Suite > --- WEAPON ----------- Improved Medium Laser Advanced Beam Cannon > --- INVENTORY -------- Light Ion Engine VTOL Module Actuator Array Transmission Jammer Light EM Pulse Cannon Assault Rifle Mining Laser [Rating: 21] Favorites ----------- Power Light Ion Engine Engine Light Ion Engine Power Core Nuclear Core Propulsion Aluminum Leg Leg Aluminum Leg Hover Unit Airjet Flight Unit VTOL Module Utility Medium Storage Unit Device Sensor Array Storage Medium Storage Unit Processor Advanced Signal Interpreter Hackware Hacking Suite Weapon Grenade Launcher Energy Gun Improved Medium Laser Energy Cannon Ion Cannon Ballistic Gun Assault Rifle Launcher Grenade Launcher Special Weapon Mining Laser Build | -11 -10 -10 -9 -9 -8 ------- Run | Scr Mat Min Mat Sto Mat Slots Evolved 4 | . . . 2 . 2 Power 1 | . . . . . 1 Propulsion . | . . . . . . Utility 3 | . . . 2 . 1 Weapon . | . . . . . . Parts Attached 51 | 6 3 3 12 23 4 Power 12 | 3 . . 4 3 2 Engine 10 | 3 . . 4 3 . Core 2 | . . . . . 2 Reactor . | . . . . . . Propulsion 10 | 2 . 2 2 4 . Treads . | . . . . . . Leg 4 | 2 . . 2 . . Wheel . | . . . . . . Hover 2 | . . 2 . . . Flight 4 | . . . . 4 . Utility 14 | . 2 . 3 8 1 Device 11 | . 1 . 1 8 1 Storage 1 | . 1 . . . . Processor 1 | . . . 1 . . Hackware 1 | . . . 1 . . Protection . | . . . . . . Artifact . | . . . . . . Weapon 15 | 1 1 1 3 8 1 Energy Gun 4 | . . 1 . 3 . Energy Cannon 5 | . . . 1 4 . Ballistic Gun 2 | 1 . . 1 . . Ballistic Cannon . | . . . . . . Launcher 3 | . 1 . 1 . 1 Special Weapon 1 | . . . . 1 . Impact Weapon . | . . . . . . Slashing Weapon . | . . . . . . Piercing Weapon . | . . . . . . Special Melee Weapon . | . . . . . . Unidentified Prototypes 3 | . . . . 2 1 Parts Lost 20 | . . 1 5 7 7 Power 4 | . . . 1 1 2 Propulsion 5 | . . . 2 1 2 Utility 5 | . . 1 . 2 2 Weapon 6 | . . . 2 3 1 Highest Loss Streak 4 | . . 1 2 4 2 Average Slot Usage (%) 83 | . 90 91 90 81 34 Engine 10 | . 14 14 9 9 . Leg 10 | . 28 7 8 . . Hover 6 | . . 20 12 . . Flight 5 | . . . . 21 4 Device 9 | . 12 6 11 9 5 Storage 9 | . 7 14 11 8 . Processor 5 | . . . 11 11 9 Hackware 5 | . . . 11 11 8 Energy Gun 3 | . . 1 3 8 . Ballistic Gun 7 | . 14 12 2 . . Launcher 8 | . 13 14 4 . 4 Naked Turns . | . . . . . . Heaviest Build 21 | 7 17 17 21 19 9 Greatest Support 20 | 20 20 20 20 16 10 Greatest Overweight (x) 5 | . . 1 5 1 2 Average Overweight (x) . | . . . . . . Largest Inventory Capacity 8 | 4 8 8 8 8 4 Average Capacity 6 | 4 6 8 8 6 4 Most Carried 8 | 3 5 8 8 8 4 Average Carried 4 | 2 2 7 5 5 3 Final Capacity 8 | 4 8 8 8 4 4 Final Carried 8 | 3 5 8 8 2 4 Class Distribution -------------------- 53% | Mutant 46% | Hacker-Mutant Dominant Class ---------------- Mutant | -10/Materials Mutant | -10/Mines Hacker-Mutant | -9/Materials Hacker-Mutant | -9/Storage Hacker-Mutant | -8/Materials Resources | -11 -10 -10 -9 -9 -8 ----------- Run | Scr Mat Min Mat Sto Mat Matter Collected 601 | 260 57 98 157 29 . Remotely . | . . . . . . Salvage Created 683 | . 177 192 266 29 19 Parts 44 | . 12 7 17 3 5 Haulers Intercepted 3 | . 2 . 1 . . Recyclers Shooed 4 | . . 2 1 . 1 Parts Field Recycled . | . . . . . . Retrieved Matter . | . . . . . . Parts Self-Destructed . | . . . . . . Prevented . | . . . . . . Kills | -11 -10 -10 -9 -9 -8 ------- Run | Scr Mat Min Mat Sto Mat Combat Hostiles Destroyed 10 | . 3 2 5 . . Guns 5 | . 3 2 . . . Cannons 5 | . . . 5 . . Classes Destroyed 7 | . 3 2 1 1 . Worker 2 | . . 1 1 . . Hauler 3 | . 2 . 1 . . Recycler 1 | . . 1 . . . Watcher 2 | . . . . 1 1 Swarmer 3 | . 2 . 1 . . Grunt 6 | . 1 2 3 . . Sentry 1 | . . . 1 . . Best Kill Streak 4 | . 2 3 4 1 1 Combat Bots Only 3 | . 2 2 3 . . Max Kills in Single Turn 1 | . 1 1 1 1 1 Gunslinging . | . . . . . . Exploded . | . . . . . . Melee . | . . . . . . Uniques/NPCs Destroyed . | . . . . . . Combat | -11 -10 -10 -9 -9 -8 -------- Run | Scr Mat Min Mat Sto Mat Damage Taken 2134 | . 132 106 488 560 848 Core 914 | . 27 27 100 200 560 Absorbed by Shields 23 | . . . . 23 . Core Remaining (%) 67 | 100 . 78 . 25 . Volleys Fired 65 | . 23 14 19 8 1 Largest 2 | . 1 1 2 2 1 Hottest 90 | . 20 30 90 76 43 Shots Fired 71 | . 23 14 24 9 1 Gun 46 | . 23 11 4 8 . Cannon 20 | . . . 19 1 . Launcher 5 | . . 3 1 . 1 Special . | . . . . . . Kinetic 39 | . 23 11 4 1 . Thermal 25 | . . . 19 6 . Explosive 5 | . . 3 1 . 1 Electromagnetic 2 | . . . . 2 . Robot Hit Streak 13 | . 7 9 13 6 2 Robot Miss Streak 2 | . 2 1 1 1 . Penetration Max . | . . . . . . Secondary Targets . | . . . . . . Shots Hit Robots 57 | . 19 10 20 7 1 Core Hits 34 | . 8 9 10 1 6 Critical Hits 1 | . 1 . . . . Critical Kills . | . . . . . . Critical Parts Destroyed 1 | . 1 . . . . Melee Attacks . | . . . . . . Impact . | . . . . . . Slashing . | . . . . . . Piercing . | . . . . . . Sneak Attacks . | . . . . . . Combat Hostiles . | . . . . . . Follow-up Attacks . | . . . . . . Damage Inflicted 1058 | . 237 160 484 104 73 Guns 492 | . 237 113 38 104 . Cannons 398 | . . . 398 . . Explosions 148 | . . 47 42 . 59 Melee . | . . . . . . Ramming 20 | . . . 6 . 14 Kinetic 388 | . 237 113 38 . . Thermal 483 | . . . 398 85 . Explosive 148 | . . 47 42 . 59 Electromagnetic 19 | . . . . 19 . Impact . | . . . . . . Slashing . | . . . . . . Piercing . | . . . . . . Highest Corruption 2 | . . . 1 1 2 Average Corruption 1 | . . . 1 1 2 Corruption Purged . | . . . . . . Effects 1 | . . . . 1 . Data Loss (minor) 1 | . . . . 1 . Overload Shots . | . . . . . . Overflow Damage 5 | . . 5 . . . Projectiles . | . . . . . . Explosions 5 | . . 5 . . . Melee . | . . . . . . Knockbacks . | . . . . . . Impact . | . . . . . . Kinetic . | . . . . . . Secondary . | . . . . . . Self-Inflicted Damage 8 | . . . 3 . 5 Shots . | . . . . . . Rammed 11 | . . . 1 . 10 Targets Rammed 11 | . . . 1 . 10 Kicked . | . . . . . . Crushed . | . . . . . . Highest Temperature 179 | . . 3 179 41 . Average Temperature 39 | . . 1 55 16 . Received Heat Transfer 773 | . 24 78 105 179 387 Siege Activations . | . . . . . . Robots Corrupted . | . . . . . . Combat Hostiles . | . . . . . . Parts Fried . | . . . . . . Impact Corruptions . | . . . . . . Robots Melted . | . . . . . . Combat Hostiles . | . . . . . . Parts Melted . | . . . . . . Heat Transferred 814 | . . . 629 185 . Parts Sabotaged . | . . . . . . Parts Stolen . | . . . . . . Parts Stripped . | . . . . . . Power Chain Reactions . | . . . . . . Missiles Intercepted . | . . . . . . Alert | -11 -10 -10 -9 -9 -8 ------- Run | Scr Mat Min Mat Sto Mat Peak Influence 256 | . 177 62 107 256 71 Initial 43 | . . 12 . 34 43 Average 56 | . 55 28 33 110 44 Maximum Alert Level 1 | . . . . 1 . Low Security (%) 95 | 100 100 100 100 81 100 Level 1 4 | . . . . 18 . Level 2 . | . . . . . . Level 3 . | . . . . . . Level 4 . | . . . . . . Level 5 . | . . . . . . High Security . | . . . . . . Max Security . | . . . . . . Squads Dispatched 5 | . 1 1 . 2 1 Investigation 2 | . 1 1 . . . Extermination . | . . . . . . Reinforcement 3 | . . . . 2 1 Assault . | . . . . . . Garrison . | . . . . . . Intercept . | . . . . . . Construction Impeded . | . . . . . . Haulers Reinforced . | . . . . . . Stealth | -11 -10 -10 -9 -9 -8 --------- Run | Scr Mat Min Mat Sto Mat Distress Signals 1 | . 1 . . . . Communications Jammed 2 | . . . 1 1 . Distress Signals 2 | . . . 1 1 . Times Spotted 61 | . 16 2 7 28 8 Peak Tracking Total 13 | . 4 2 4 13 7 Tactical Retreats 8 | . 3 . . 5 . Traps | -11 -10 -10 -9 -9 -8 ------- Run | Scr Mat Min Mat Sto Mat Traps Triggered 8 | . 1 . 2 5 . Indirectly . | . . . . . . Trap Hack Attempts . | . . . . . . Triggered . | . . . . . . Disarmed . | . . . . . . Reprogrammed . | . . . . . . Reused . | . . . . . . Traps Extracted . | . . . . . . Installed . | . . . . . . Triggered . | . . . . . . Machines | -11 -10 -10 -9 -9 -8 ---------- Run | Scr Mat Min Mat Sto Mat Machines Disabled . | . . . . . . Max in Single Turn . | . . . . . . Garrison Access 1 | . . . . 1 . Machines Sabotaged . | . . . . . . Garrisons Compromised . | . . . . . . Overloaded Fab Kills . | . . . . . . Fab Network Shutdowns . | . . . . . . Hacking | -11 -10 -10 -9 -9 -8 --------- Run | Scr Mat Min Mat Sto Mat Machines Accessed 6 | . . 1 . 5 . Terminals 4 | . . . . 4 . Fabricators . | . . . . . . Repair Stations . | . . . . . . Recycling Units . | . . . . . . Scanalyzers . | . . . . . . Garrison Access 1 | . . . . 1 . Total Hacks 8 | . . 1 . 7 . Successful 6 | . . 1 . 5 . Failed 2 | . . . . 2 . Catastrophic . | . . . . . . Database Lockouts . | . . . . . . Manual . | . . . . . . Terminals 5 | . . . . 5 . Fabricators . | . . . . . . Repair Stations . | . . . . . . Recycling Units . | . . . . . . Scanalyzers . | . . . . . . Garrison Access 2 | . . . . 2 . Terminal Hacks 5 | . . 1 . 4 . Open Door 5 | . . 1 . 4 . Fabricator Hacks . | . . . . . . Repair Station Hacks . | . . . . . . Recycling Unit Hacks . | . . . . . . Scanalyzer . | . . . . . . Garrison Access Hacks 1 | . . . . 1 . Seal Access 1 | . . . . 1 . Unauthorized Hacks . | . . . . . . Terminals . | . . . . . . Fabricators . | . . . . . . Repair Stations . | . . . . . . Recycling Units . | . . . . . . Scanalyzers . | . . . . . . Garrison Access . | . . . . . . Data Cores Recovered . | . . . . . . Used . | . . . . . . Hacking Detections 1 | . . . . 1 . Full Trace Events . | . . . . . . Feedback Events . | . . . . . . Feedback Blocked . | . . . . . . Robot Schematics Acquired . | . . . . . . Robots Built . | . . . . . . Matter . | . . . . . . Time . | . . . . . . Total Robot Build Rating . | . . . . . . Part Schematics Acquired . | . . . . . . Parts Built . | . . . . . . Matter . | . . . . . . Time . | . . . . . . Total Part Build Rating . | . . . . . . Parts Repaired . | . . . . . . Time . | . . . . . . Parts Recycled . | . . . . . . Recycled Matter . | . . . . . . Retrieved Matter . | . . . . . . Retrieved Components . | . . . . . . Parts Scanalyzed . | . . . . . . Part Schematics Acquired . | . . . . . . Parts Damaged . | . . . . . . Bothacking | -11 -10 -10 -9 -9 -8 ------------ Run | Scr Mat Min Mat Sto Mat Used RIF Installer . | . . . . . . Robots Hacked . | . . . . . . Non-combat . | . . . . . . Combat . | . . . . . . Robot Hacks Applied . | . . . . . . Relay Couplers Released . | . . . . . . Robots Rewired . | . . . . . . Allies Hacked . | . . . . . . Hacks Repelled . | . . . . . . Allies | -11 -10 -10 -9 -9 -8 -------- Run | Scr Mat Min Mat Sto Mat Total Allies . | . . . . . . Largest Group . | . . . . . . Highest-Rated Group . | . . . . . . Highest-Rated Ally . | . . . . . . Total Orders . | . . . . . . Ally Attacks . | . . . . . . Total Damage . | . . . . . . Kills . | . . . . . . Allies Corrupted . | . . . . . . Allies Melted . | . . . . . . Intel | -11 -10 -10 -9 -9 -8 ------- Run | Scr Mat Min Mat Sto Mat Robot Analysis Total . | . . . . . . Derelict Logs Recovered 2 | . . 2 . . . Drone Launches . | . . . . . . Drone Recoveries . | . . . . . . Exploration | -11 -10 -10 -9 -9 -8 ------------- Run | Scr Mat Min Mat Sto Mat Turns Passed 2025 | 56 522 494 275 486 192 Spaces Moved 1719 | 43 322 385 169 618 182 Core 129 | 13 . . 1 . 115 Treads . | . . . . . . Legs 512 | 30 322 104 56 . . Wheels . | . . . . . . Hover 393 | . . 281 112 . . Flight 685 | . . . . 618 67 Fastest Speed 37 | 50 120 116 56 37 37 Average Speed 85 | 98 120 117 112 37 92 Slowest Speed 300 | 120 120 120 300 117 150 Overloaded Moves . | . . . . . . Propulsion Burnouts . | . . . . . . Robots Hopped 11 | . . . . 11 . Cave-ins Triggered . | . . . . . . Exploration Rate (%) 39 | 4 41 90 13 69 20 Regions Visited 5 Branch Regions 2 Pre-discovered Areas 1 | . . 1 . . . Known Exits Taken 2 | . . . 1 1 . Unknown Exits Taken 3 | 1 1 1 . . . Scrap Searched 3 | . . 3 . . . Spaces Dug . | . . . . . . Terrain Destroyed 35 | . . 15 . . 20 Melee . | . . . . . . Projectile . | . . . . . . AOE 35 | . . 15 . . 20 Terrain Rammed . | . . . . . . Walls Destroyed . | . . . . . . Machines Disabled . | . . . . . . Actions | -11 -10 -10 -9 -9 -8 --------- Run | Scr Mat Min Mat Sto Mat Total 2187 | 55 434 415 229 853 201 Wait 275 | . 81 . 16 178 . Move 1692 | 42 321 384 168 595 182 Hop 11 | . . . . 11 . Pick Up 45 | 7 5 8 11 10 4 Fast Attach 5 | . 1 1 . 1 2 Attach 29 | 4 2 . 10 11 2 Detach 3 | . . . . 3 . Swap 17 | 2 . 2 2 11 . Drop 20 | . 1 6 2 11 . Fire 65 | . 23 14 19 8 1 Melee . | . . . . . . Ram 10 | . . . . . 10 Kick 1 | . . . 1 . . Crush . | . . . . . . Escape Stasis 14 | . . . . 14 . Rewire . | . . . . . . Trap . | . . . . . . Miscellaneous . | . . . . . . Route ------- -11/Scrapyard -10/Materials -10/Mines -9/Materials (discovered 5 exits: Mat x2 / Min / *Sto x2) -9/Storage -8/Materials History --------- Turn | Location | Event 9 | -11/Scrapyard | Discovered new exit (range 15) 57 | -11/Scrapyard | Entered Materials 326 | -10/Materials | Build established: Mutant 533 | -10/Materials | Discovered new exit (range 11) 579 | -10/Materials | Entered Mines 580 | -10/Mines | Learned location of Storage (-9) 614 | -10/Mines | Met a Derelict shopkeep closing up shop 863 | -10/Mines | Learned 8 Materials zone layouts 942 | -10/Mines | Learned 2 Materials zone layouts 1059 | -10/Mines | Discovered new exit (range 10) 1073 | -10/Mines | Entered Materials 1073 | -9/Materials | Evolved 2 slots: Utility x2 1074 | -9/Materials | Identified exit to Materials 1074 | -9/Materials | Identified exit to Mines 1074 | -9/Materials | Identified exit to Storage 1282 | -9/Materials | Discovered exit to Storage (range 7) 1348 | -9/Materials | Entered Storage 1421 | -9/Storage | Build established: Hacker-Mutant 1771 | -9/Storage | Core integrity fell below 50% 1827 | -9/Storage | Discovered exit to Materials (range 8) 1834 | -9/Storage | Lost 4 parts (1n1u2w) 1834 | -9/Storage | Entered Materials 1834 | -8/Materials | Evolved 2 slots: Power x1, Utility x1 1961 | -8/Materials | Core integrity fell below 50% 1974 | -8/Materials | Core integrity fell below 20% 2026 | -8/Materials | Destroyed by Y-45 Defender with Beam Rifle Last Messages --------------- 01911_ K-01 Serf cleans the Atomic Centrifuge. 01950_ Acquired Hacking Suite. 01957_ Prc. Rocket Launcher destroyed. 01959_ ALERT: Hostiles spotted, dispatching reinforcements to Terminal M004. 01960_ Slammed into G-47 Trooper. 01963_ Slammed into Y-45 Defender. 01963_ Transmission Jammer permanently disabled. 01963_ Destabilizing: Short circuit. 01966_ Acquired Nuclear Core. 01968_ Broken Transmission Jammer destroyed. 01970_ Slammed into G-47 Trooper. 01971_ Knocked back. 01972_ Slammed into Y-45 Defender. 01980_ U-05 Engineer builds a Door. 01981_ Slammed into U-05 Engineer. 02006_ Nuclear Core destroyed. 02008_ Hacking Suite destroyed. 02008_ System corrupted by crushing effect (+2). 02016_ Acquired Lgt. Nuclear Core. Map ----- +----------------------------------------------------+ | ???????????????# ] #???????????????????? | | ???????????????#######/########??????????????????? | | ????????????######### / [ #??????????????????? | | ????????????# # # #??????????????????? | | ????????????#[ / + !] #??????????????????? | | ????????????# # # !] #??????????????????? | | ????????????######### # #??????????????????? | | ????????????# # #??????????????????? | | ????????????# ########??????????????????? | | ?????########### ###+############???????????????? | | ?????# # # ## #???????????????? | | ?????? """ """ + # """ ## [!!#???????????????? | | ?????# """ """ # # """ !## [!!#???????????????? | | ?????# """ """ # # """ ## [!!#???????????????? | | ?????# # # ## #???????????????? | | ?????# # # ## #???????????????? | | ?????# # ##/#########+###???????????????? | | ?????# + u #???????????????? | | ?????########### ###?????????????? | | ???????????????###### ##### # ########??????? | | ????????????????????# #?# T #??????? | | ????????????????????# #?# = """ #??????? | | ????????????????????# Y #?# % """ #??????? | | ????????????????????# #?# """ #??????? | | ????????????????#####+###Y#?# # #??????? | | ????????????????# @#?## """ #??????? | | ????????????????# b""" #??## = """ #??????? | | ????????????????# """ #???# # """ #??????? | | ????????????????# """ #???# # #??????? | | ????????????????#"" #???# ##########??????? | | ????????????????#"Y ##??# #???????????????? | | ????????????????#"" #??# #???????????????? | | ????????????????# ##??# #???????????????? | | ???????????????############??## ##??????????????? | | ??????########## ###### #######+## ???? | | ?????#! # """ + ??? | | ?????# # """ ###### T ??? | | ?????# # // """ #????# ########## ???? | | ?????# """ """ # // #?#####/#####????????????? | | ?????# """ """ # """ #?# #????????????? | | ?????# """ """ # """ #?# / """??????? | | ?????# # """ #?# """ """ # """??????? | | ?????# # #?# """ """ #?? """??????? | | ?????#####+######+#######?# """ """ #?????"??????? | | ??????# #????# #????????????? | | ??????# #????# ! #????????????? | | ??????# #????# #????????????? | | ??????############ #????###########????????????? | | ?????????????????? #???????????????????????????? | | ?????????????????? #???????????????????????????? | +----------------------------------------------------+ Best States ------------- Heat Dissipation 31 Energy Generation 14 Energy Capacity 250 Matter Stores 300 Matter Capacity 300 Sight Range 16 Robot Scan Range 10 Terrain Scan Density 10 Jamming Range 8 Additional Mass Support 6 Resistance: KI 20 Resistance: TH 20 Resistance: EX 20 Resistance: EM 20 Resistance: I 20 Resistance: S 20 Resistance: P 20 Evasion (%) 62 Offensive Hacking 20 Item Schematics ----------------- None Robot Schematics ------------------ None Fabricated ------------ Nothing Alien Tech Used ----------------- None Achievements -------------- None Challenges ------------ None Game ------ Seed StealthTrapMagmablaster Manual? 0 Play Time 00:38:28 Cumulative 15.2 hours Start 2022.02.19 @ 00:37:25 End 2022.02.19 @ 01:18:35 Sessions 1 Manual Loads 0 Difficulty Adventurer Special Mode None Game No. 21 Rogue 0 Adventurer 21 Explorer 0 Win Type - Total 0 Types 0/0/0/0/0/0/0/0/0 Lore% 18 Gallery% 17 Achievement% 14 Wizard Run 0 Options --------- ASCII 0 Keyboard 0 Movement Mouse Keybinds 0 Fullscreen 1 Font 16/Proggy Map View 76x50 Tactical HUD 1 Map Filters NONE Filters NONE Steam 1 RUN: 29b6f46c-b5cd-439f-89f0-2ced910a480f